[Event "NY Presidents Day IM-B 2024"]
[Site "New York"]
[Date "2024.02.16"]
[Round "1.1"]
[White "Xu, Grant"]
[Black "Lee, Megan"]
[Result "1/2-1/2"]
[ECO "C54"]
[WhiteElo "2313"]
[BlackElo "2267"]
[Annotator "TA"]
[PlyCount "99"]
[EventDate "2024.02.14"]
[EventType "schev"]
[EventCountry "USA"]
[SourceTitle "playchess.com"]
[Source "ChessBase"]
[SourceQuality "1"]
[TimeControl "5400+30"]

{[%evp 17,99,0,0,-5,31,2,20,1,12,0,0,0,9,-11,-3,-14,0,-10,-11,-4,0,0,0,-27,-35,-20,-16,-30,-30,-79,-44,-44,-33,-81,-46,-138,-130,-213,-204,-450,-435,-614,-486,-513,-507,-500,-141,-125,-111,-134,-126,-136,-132,-141,-88,-142,-114,-122,-122,-179,-129,-129,-97,-97,-97,-96,-95,-172,-81,-97,-83,-79,-58,-58,-58,-58,-3,-3,0,-4,0,0,0,0]} 1. e4 {[%emt 0:00:07]} e5 {[%emt 0:00:05]} 2. Nf3 {[%emt 0:00:21]} Nc6 {[%emt 0:00:03]} 3. Bc4 {[%emt 0:00:34]} Bc5 {[%emt 0:00:06]} 4. c3 {[%emt 0:00:35]} Nf6 {[%emt 0:00:10]} 5. d4 {[%emt 0:00:47]} exd4 {[%emt 0:00:15]} 6. e5 {[%emt 0:00:27]} d5 {[%emt 0:00:31]} 7. Bb5 {[%emt 0:00:20]} Ne4 {[%emt 0:00:58]} 8. cxd4 {[%emt 0:00:08]} Bb6 {[%emt 0:00:57]} 9. Nc3 {[%emt 0:00:38]} O-O {[%emt 0:02:45]} 10. Be3 {[%emt 0:00:36]} h6 {[%emt 0:09:27]} 11. Qb3 {[%emt 0:06:57]} Nxc3 {[%emt 0:08:51]} 12. bxc3 {[%emt 0:04:42]} Bf5 {[%emt 0:02:36]} 13. O-O {[%emt 0:01:15]} Na5 {[%emt 0:03:48]} 14. Qd1 {[%emt 0:06:10]} Nc4 {[%emt 0:07:19]} 15. Bxc4 {[%emt 0:04:46]} dxc4 {[%emt 0:00:10]} 16. Nd2 {[%emt 0:00:13]} Bd3 {[%emt 0:01:28][%cal Ob6a5]} 17. Re1 {[%emt 0:03:53]} Qd5 {[%emt 0:06:58]} 18. Qg4 {[%emt 0:02:53]} f5 {[%emt 0:06:31]} 19. Qg3 {[%emt 0:01:01]} Kh7 {[%emt 0:00:56]} 20. h4 {[%emt 0:00:39] White is weak on the light squares} Rae8 {[%emt 0:01:12]} 21. a4 {[%emt 0:20:58]} Ba5 {[%emt 0:04:20]} 22. Rec1 {[%emt 0:03:01]} Re6 {[%emt 0:05:56][%cal Of5f4] Hoping for ...f4!} 23. Qf4 {[%emt 0:14:47]} (23. f4 $11 {feels stronger.}) 23... Rg8 {[%emt 0:06:34]} 24. Qf3 {[%emt 0:11:43]} c6 {[%emt 0:13:23]} (24... Qxf3 {simplifies} 25. Nxf3 Rb6 26. Ra2 Be4) 25. Qh5 {[%emt 0:00:25]} (25. Qh3 $15 {might be stronger.}) 25... Rf8 {[%emt 0:04:29] aiming for ...f4.} (25... Bd8 {simplifies} 26. Qf3 g5 27. hxg5 hxg5 28. Qxd5 cxd5 29. Nf3 f4) 26. Nf3 {[%emt 0:01:22]} (26. Bf4 $1 $15) 26... Kg8 $17 {[%emt 0:00:53] ...f4 would now be deadly.} 27. Ne1 {[%emt 0:04:02] [#]} (27. Bf4 $17) 27... f4 $1 $19 {[%emt 0:00:17]} 28. Bd2 {[%emt 0:00:24]} (28. Nxd3 {only move.} fxe3 (28... cxd3 29. Bd2 $11) 29. Nc5 Rxf2 (29... exf2+ $2 30. Kf1 $19) 30. Qg4 Rxe5 31. dxe5 Qxc5 32. Qe6+ Kh7 33. Qd6) 28... Rg6 {[%emt 0:03:20] And now ...f3 would win.} 29. f3 {[%emt 0:01:44]} (29. Kh1 $142 c5 30. Rd1) 29... Bf5 {[%emt 0:03:12]} 30. Ra2 {[%emt 0:01:30]} (30. Bxf4 Bxc3 31. Rxc3 Qxd4+ 32. Re3 Qxa1) 30... Rg3 {[%emt 0:01:01] Strongly threatening ...Bg6.} 31. e6 {[%emt 0:01:13]} Bxe6 {[%emt 0:01:12]} (31... Qxe6 $19 {is more deadly.} 32. Bxf4 Bxc3) 32. Qxd5 $17 {[%emt 0:00:12]} Bxd5 {[%emt 0:00:40]} 33. Rb2 {[%emt 0:00:41]} b6 {[%emt 0:00:53]} 34. Kf2 {[%emt 0:00:35][%cal Od2f4]} Rg6 {[%emt 0:01:09]} 35. Nc2 {[%emt 0:00:19]} Re6 {[%emt 0:02:00]} (35... Rd6 $142 36. Re1 Be6) 36. Rbb1 {[%emt 0:00:21]} (36. Nb4 $142) 36... g5 {[%emt 0:00:27]} 37. hxg5 {[%emt 0:02:06]} hxg5 {[%emt 0:00:01]} 38. Nb4 {[%emt 0:00:18]} (38. Re1 $17) 38... Rfe8 {[%emt 0:01:34]} (38... Bxb4 $19 39. cxb4 g4) 39. Re1 {[%emt 0:00:43]} Bxb4 {[%emt 0:01:47]} 40. Rxe6 {[%emt 0:00:29]} Bxe6 {[%emt 0:01:03]} 41. cxb4 {[%emt 0:01:02][%mdl 4096] Endgame. KRB-KRB} Kf7 {[%emt 0:01:04]} 42. b5 {[%emt 0:00:24] [#]} (42. Rh1 $17 {is a better defense.}) 42... Bd7 {[%emt 0:00:25]} (42... Bf5 $1 $19 {[%cal Rf5b1] and Black stays clearly on top.} 43. Ra1 Bd3) 43. bxc6 {[%emt 0:02:27]} Bxc6 {[%emt 0:00:00]} 44. Rb4 {[%emt 0:00:07]} Bd5 {[%emt 0:00:30]} 45. Rb5 {[%emt 0:01:09]} Ke6 {[%emt 0:00:50][%cal Oc4c3]} 46. a5 {[%emt 0:00:09]} Rc8 {[%emt 0:00:48]} (46... Rb8 $15 47. Bb4 Rb7) 47. axb6 $11 {[%emt 0:01:19] The position is equal.} c3 {[%emt 0:00:25]} 48. b7 {[%emt 0:00:43]} Rb8 {[%emt 0:00:32]} ({Stronger than} 48... cxd2 49. bxc8=Q+ (49. bxc8=R $2 {loses.} d1=Q $19) 49... Kf7 50. Qd7+ (50. Rxd5 d1=N+ 51. Kg1 Kg6 52. Qe6+ Kh5 53. Qf6 Kh4 54. Qxg5#) (50. Qf5+ Kg7 51. Rxd5 d1=N+ 52. Kg1 Kg8 53. Qg6+ Kf8 54. Rd7 Ne3 55. Qf7#) 50... Kg6 51. Rxd5 d1=N+ 52. Kg1 Ne3 53. Rd6+ Kh5 54. Qh7#) 49. Bxc3 {[%emt 0:00:15]} Rxb7 {[%emt 0:00:14]} 50. Ra5 {[%emt 0:01:21] Whites escaped into a draw.   Weighted Error Value: White=0.31/Black=0.32.  Missed win:     	---       	Black=1      Mistake:       	White=9     	Black=4      Inaccurate:     	White=2     	Black=3      OK:         	White=15    	Black=9      Best:        	White=2     	Black=2      Strong:       	---       	Black=1} 1/2-1/2

[Event "NY Presidents Day IM-B 2024"]
[Site "New York"]
[Date "2024.02.16"]
[Round "1.2"]
[White "Rajesh, C.S."]
[Black "Poliannikov, Danila"]
[Result "1/2-1/2"]
[ECO "D00"]
[WhiteElo "2218"]
[BlackElo "2282"]
[Annotator "TA"]
[PlyCount "88"]
[EventDate "2024.02.14"]
[EventType "schev"]
[EventCountry "USA"]
[SourceTitle "playchess.com"]
[Source "ChessBase"]
[SourceQuality "1"]
[TimeControl "5400+30"]

{[%evp 9,88,10,7,0,0,-11,-20,-4,-14,-6,-8,-18,-14,-28,2,-6,12,-5,12,0,0,-23,37,14,33,25,37,15,14,14,29,29,29,33,33,23,29,27,37,38,49,38,34,31,31,29,46,6,0,0,3,6,20,0,1,0,0,0,0,0,0,-14,-14,-14,-14,-20,-20,-24,-6,-8,0,0,0,-7,-2,-8,-7,-7,-7,-8,-7]} 1. Nf3 {[%emt 0:00:10]} Nf6 {[%emt 0:00:03]} 2. d4 {[%emt 0:00:31]} g6 {[%emt 0:01:45]} 3. Nc3 {[%emt 0:02:25]} d5 {[%emt 0:00:10]} 4. Bf4 {[%emt 0:00:35]} Bg7 {[%emt 0:00:08]} 5. e3 {[%emt 0:00:09]} O-O {[%emt 0:03:44]} 6. Nb5 {[%emt 0:03:00]} Na6 {[%emt 0:00:06]} 7. h3 {[%emt 0:03:19]} Ne4 {[%emt 0:00:23]} 8. Nd2 {[%emt 0:06:19]} Nxd2 {[%emt 0:04:56]} 9. Qxd2 {[%emt 0:06:48]} c6 {[%emt 0:05:29]} 10. Na3 {[%emt 0:09:27]} Nc7 {[%emt 0:08:41]} 11. Bh2 {[%emt 0:04:33]} Ne6 {[%emt 0:12:41]} 12. c3 {[%emt 0:07:10]} a6 {[%emt 0:09:20]} 13. Bd3 {[%emt 0:04:02]} b5 {[%emt 0:01:18]} 14. Nc2 {[%emt 0:01:02]} c5 {[%emt 0:00:47]} 15. b4 {[%emt 0:05:25]} cxb4 {[%emt 0:07:14]} (15... c4 $11 16. Be2 a5) 16. cxb4 {[%emt 0:00:25]} Bd7 {[%emt 0:05:17]} 17. Rc1 {[%emt 0:07:23]} Qb6 {[%emt 0:01:35]} 18. a3 {[%emt 0:07:32]} Rfc8 {[%emt 0:01:23]} 19. O-O {[%emt 0:00:12]} Bh6 {[%emt 0:02:00][%cal Oe6d4]} 20. Be2 {[%emt 0:04:03]} Ng5 {[%emt 0:02:09]} 21. Na1 {[%emt 0:05:36][%cal Bc2a1,Ba1b3,Bb3c5][%mdl 32]} Ne4 {[%emt 0:17:12]} 22. Qb2 {[%emt 0:00:59]} a5 {[%emt 0:03:33]} 23. Nb3 {[%emt 0:00:50]} axb4 {[%emt 0:02:42]} 24. axb4 {[%emt 0:00:03]} Nd6 {[%emt 0:01:02]} 25. Nc5 {[%emt 0:01:01]} Be8 {[%emt 0:01:44]} 26. Bxd6 {[%emt 0:00:17]} Qxd6 {[%emt 0:00:56]} 27. Ra1 {[%emt 0:01:51]} Bg7 {[%emt 0:00:44]} 28. Rxa8 {[%emt 0:00:31]} Rxa8 {[%emt 0:00:03]} 29. Ra1 {[%emt 0:00:01]} Rxa1+ {[%emt 0:01:14]} 30. Qxa1 {[%emt 0:00:05]} e5 {[%emt 0:00:19]} 31. Bf3 {[%emt 0:10:42]} Bc6 {[%emt 0:01:41] Inhibits Qa8+.} 32. Qa6 {[%emt 0:02:02] [#] Qc8+ would now be deadly.} (32. dxe5 {simplifies} Qxe5 33. Qxe5 Bxe5 34. Nb3) 32... exd4 {[%emt 0:02:59]} 33. Qc8+ {[%emt 0:00:08]} Bf8 {[%emt 0:00:04]} 34. exd4 {[%emt 0:00:04]} Qf6 {[%emt 0:02:12]} 35. Nb3 {[%emt 0:07:16] aiming for Na5.} Qe6 {[%emt 0:00:34]} 36. Qxe6 {[%emt 0:00:40]} fxe6 $11 {[%emt 0:00:03][%mdl 4096] Endgame. KBB-KBN} 37. Nc5 {[%emt 0:00:02]} Kf7 {[%emt 0:00:36]} 38. Kf1 {[%emt 0:00:03]} Kf6 {[%emt 0:00:48]} 39. Nd3 {[%emt 0:00:15] The position is equal.} Bd6 {[%emt 0:00:22]} 40. Ke2 {[%emt 0:00:10]} Be8 {[%emt 0:01:01]} 41. Ke3 {[%emt 0:01:17]} g5 {[%emt 0:00:28]} 42. Be2 {[%emt 0:00:40]} Bg6 {[%emt 0:00:27]} 43. g3 {[%emt 0:01:24]} Bxd3 {[%emt 0:00:48]} 44. Bxd3 {[%emt 0:00:09]} h6 {[%emt 0:00:17] Weighted Error Value: White=0.07 (flawless) /Black=0.09 (flawless) .  Mistake:       	---       	Black=1      Inaccurate:     	White=1     	Black=1      OK:         	White=14    	Black=16     Best:        	White=1     	Black=1} 1/2-1/2

[Event "NY Presidents Day IM-B 2024"]
[Site "New York"]
[Date "2024.02.16"]
[Round "1.3"]
[White "Wongso, Steve"]
[Black "Sun, Ryan"]
[Result "1/2-1/2"]
[ECO "C77"]
[WhiteElo "2229"]
[BlackElo "2217"]
[Annotator "TA"]
[PlyCount "153"]
[EventDate "2024.02.14"]
[EventType "schev"]
[EventCountry "USA"]
[SourceTitle "playchess.com"]
[Source "ChessBase"]
[SourceQuality "1"]
[TimeControl "5400+30"]

{[%evp 58,153,0,0,0,0,0,0,0,0,0,0,0,0,0,0,0,0,0,0,0,0,0,0,0,0,0,0,0,0,0,0,0,-5,0,0,0,0,0,0,0,0,0,0,0,0,0,0,0,0,0,0,0,0,0,0,0,0,0,0,0,0,0,0,0,0,0,0,0,0,0,0,0,0,0,0,0,0,0,0,0,0,0,0,0,0,0,0,0,0,0,0,0,0,0,10,17,0]} 1. e4 {[%emt 0:00:03]} e5 {[%emt 0:00:06]} 2. Nf3 {[%emt 0:00:04]} Nc6 {[%emt 0:00:05]} 3. Bb5 {[%emt 0:00:03]} a6 {[%emt 0:00:23]} 4. Ba4 {[%emt 0:00:05]} Nf6 {[%emt 0:00:05]} 5. d3 {[%emt 0:00:33]} d6 {[%emt 0:00:29]} 6. a3 {[%emt 0:05:25]} g6 {[%emt 0:00:33]} 7. Nc3 {[%emt 0:02:20]} Bg7 {[%emt 0:03:12]} 8. Nd5 {[%emt 0:13:34]} h6 {[%emt 0:07:36]} 9. O-O {[%emt 0:02:21]} O-O {[%emt 0:00:31]} 10. c4 {[%emt 0:02:30]} Nxd5 {[%emt 0:04:17]} 11. cxd5 {[%emt 0:01:41]} Ne7 {[%emt 0:00:18]} 12. Bd2 {[%emt 0:06:33]} f5 {[%emt 0:00:53]} 13. Ne1 {[%emt 0:01:33]} g5 {[%emt 0:06:14]} 14. Rc1 {[%emt 0:04:56]} Ng6 {[%emt 0:00:45]} 15. Ba5 {[%emt 0:05:55]} b6 {[%emt 0:01:19]} 16. Bc3 {[%emt 0:03:23]} Rf7 {[%emt 0:08:00]} 17. Nc2 {[%emt 0:14:53]} f4 {[%emt 0:01:51]} 18. f3 {[%emt 0:05:11]} h5 {[%emt 0:02:19]} 19. d4 {[%emt 0:00:47]} g4 {[%emt 0:01:40]} 20. dxe5 {[%emt 0:00:30]} Nxe5 {[%emt 0:00:35]} 21. Nd4 {[%emt 0:02:47]} Qh4 {[%emt 0:19:38]} 22. Qe2 {[%emt 0:11:20]} Kh8 {[%emt 0:10:39]} 23. fxg4 {[%emt 0:03:25]} Bxg4 {[%emt 0:05:20]} 24. Qd2 {[%emt 0:01:54]} Rg8 {[%emt 0:02:12]} 25. Ne6 {[%emt 0:05:54]} Nf3+ {[%emt 0:04:33]} 26. Rxf3 {[%emt 0:01:53]} Bxf3 {[%emt 0:00:06]} 27. g3 {[%emt 0:03:31]} Kh7 {[%emt 0:01:55]} 28. Bxg7 {[%emt 0:01:26]} Rgxg7 {[%emt 0:00:20]} 29. Nxg7 {[%emt 0:00:00]} Rxg7 $2 {[%emt 0:00:24]} ({Better is} 29... fxg3 $19 30. Nf5 gxh2+) 30. Rxc7 $1 $11 {[%emt 0:00:00]} (30. Qd3 {leads to mate.} fxg3 31. h3 Qxh3 (31... Qxe4 $2 32. Bc2 $19) (31... Bxe4 $2 32. Rc4 $19) 32. Qxf3 Qh2+ 33. Kf1 g2+ (33... Qxb2 34. Qxh5+ Kg8 35. Qe8+ Kh7 36. Qh5+ Kg8 37. Qe8+ Kh7 38. Qh5+ $11) 34. Ke2 g1=Q+ (34... g1=R+ {gets mated.} 35. Ke3 R1g3 36. Bd1 Qxb2 37. Rc6 Qxa3+ 38. Kd4 Qa1+ 39. Rc3 Rxf3 40. Bxf3 Rg3 41. Kc4 Qa4+ 42. Kd3 Qd1+ 43. Kc4 b5+ 44. Kb4 Qa4#) (34... g1=N+ 35. Ke3 Nxf3 36. Rf1 Qd2+ 37. Kxf3 Rf7+ 38. Kg3 Rxf1 39. Kh4 Qf4+ 40. Kh3 Qf3+ 41. Kh4 Qg4#) 35. Kd3 Rg3 (35... Qxc1 36. Qf5+ Rg6 37. Qf7+ Kh6 38. Qf8+ Kg5 39. Qe7+ Kg4 40. Qd7+ Kg3 41. Qh3+ Kxh3 42. Bd7+ Kh4 43. e5 Qg3+ 44. Ke4 Qcf4#) 36. Rxc7+ Kh6 37. Kc4 Qc1+ (37... Rxf3 38. Bd1 Qf1+ 39. Be2 Qhxe2+ 40. Kd4 Qg1#) (37... Rxf3 38. Bd1 Qf1+ 39. Be2 Qhxe2+ 40. Kd4 Qg1#)) 30... fxg3 $1 {[%emt 0:01:00]} 31. Rxg7+ {[%emt 0:00:22]} Kxg7 {[%emt 0:00:01]} 32. Qc3+ {[%emt 0:00:45]} Qf6 {[%emt 0:00:24]} 33. hxg3 {[%emt 0:00:48]} Qxc3 {[%emt 0:02:21]} 34. bxc3 {[%emt 0:00:03]} Bxe4 {[%emt 0:00:05]} 35. c4 {[%emt 0:00:04]} Bd3 {[%emt 0:00:48]} 36. Bb3 $1 {[%emt 0:00:03]} Kf6 {[%emt 0:01:27]} 37. Kf2 $1 {[%emt 0:00:05]} Kg5 {[%emt 0:01:18]} 38. Ke3 {[%emt 0:00:14]} Bf1 {[%emt 0:00:37]} 39. Kf2 {[%emt 0:00:07]} Bh3 {[%emt 0:00:05]} 40. Kf3 {[%emt 0:00:04]} Bf5 {[%emt 0:01:03]} 41. Ba4 {[%emt 0:01:51]} Bh7 {[%emt 0:15:33]} 42. Bd1 {[%emt 0:00:23]} Bg6 {[%emt 0:00:00]} 43. Ba4 {[%emt 0:00:25]} Bb1 {[%emt 0:00:00]} (43... Bd3 $5 44. Bb3 $8 Kf5 $11) 44. Bb3 {[%emt 0:00:12]} Kf5 {[%emt 0:00:00]} 45. Bd1 {[%emt 0:01:29]} a5 {[%emt 0:00:00]} 46. Ke3 {[%emt 0:00:31]} Kg5 {[%emt 0:00:00]} 47. Be2 {[%emt 0:00:25]} Bf5 {[%emt 0:00:00]} 48. Bd1 {[%emt 0:00:06]} Bg4 {[%emt 0:00:00]} 49. Bc2 {[%emt 0:00:07]} Bf5 {[%emt 0:00:00]} 50. Bd1 {[%emt 0:00:05]} Bb1 {[%emt 0:00:00]} 51. Be2 {[%emt 0:00:50]} Ba2 {[%emt 0:00:00]} 52. Kd2 {[%emt 0:00:46]} Bb3 {[%emt 0:00:00]} 53. Kc3 {[%emt 0:00:15]} Ba4 {[%emt 0:00:00]} 54. Kd2 {[%emt 0:00:32]} Bd7 {[%emt 0:00:00]} 55. Ke3 {[%emt 0:00:04]} Bg4 {[%emt 0:00:00]} 56. Bd3 {[%emt 0:00:05]} Bd1 {[%emt 0:00:00]} 57. Kd2 {[%emt 0:00:39]} Bf3 {[%emt 0:00:00]} 58. Ke3 {[%emt 0:00:04]} Kg4 {[%emt 0:00:00]} 59. Kf2 {[%emt 0:00:04]} Bd1 {[%emt 0:00:00]} 60. Ke1 {[%emt 0:00:22]} Bb3 {[%emt 0:00:00]} 61. Kf2 {[%emt 0:00:03]} Ba4 {[%emt 0:00:00]} 62. Be2+ {[%emt 0:00:22]} Kg5 {[%emt 0:00:00]} 63. Ke3 {[%emt 0:00:06]} Bc2 {[%emt 0:00:21]} 64. Kd2 {[%emt 0:00:07]} Bf5 {[%emt 0:00:04]} 65. Ke3 {[%emt 0:00:04]} Bg4 {[%emt 0:00:04]} 66. Bd3 {[%emt 0:00:19]} Bd1 {[%emt 0:00:07]} 67. Kd2 {[%emt 0:00:05]} Bf3 {[%emt 0:00:11]} 68. Ke3 {[%emt 0:00:03]} Kg4 {[%emt 0:00:03]} 69. Kf2 {[%emt 0:00:03]} Bd1 {[%emt 0:00:05]} 70. Ke1 {[%emt 0:00:02]} Ba4 {[%emt 0:00:03]} 71. Kf2 {[%emt 0:00:04]} Be8 {[%emt 0:00:05]} 72. Be2+ {[%emt 0:00:25]} Kf5 {[%emt 0:00:58]} 73. Ke3 {[%emt 0:00:06]} Ke5 {[%emt 0:00:13]} 74. Bd3 {[%emt 0:00:15]} Bd7 {[%emt 0:01:38]} 75. Be2 {[%emt 0:00:29]} Bg4 {[%emt 0:00:49]} 76. Bxg4 {[%emt 0:00:13]} hxg4 {[%emt 0:00:04]} 77. a4 {[%emt 0:00:03]} 1/2-1/2

[Event "NY Presidents Day IM-B 2024"]
[Site "New York"]
[Date "2024.02.16"]
[Round "1.4"]
[White "Graif, William"]
[Black "Jimenez Fraga, Pedro Alejandro"]
[Result "1-0"]
[ECO "B22"]
[WhiteElo "2302"]
[BlackElo "2447"]
[Annotator "TA"]
[PlyCount "71"]
[EventDate "2024.02.14"]
[EventType "schev"]
[EventCountry "USA"]
[SourceTitle "playchess.com"]
[Source "ChessBase"]
[SourceQuality "1"]
[TimeControl "5400+30"]

{[%evp 21,71,25,27,22,27,33,18,0,0,9,16,33,12,8,17,14,13,0,6,0,61,52,75,21,102,70,68,41,152,51,164,171,167,174,226,116,174,148,219,199,238,100,318,320,319,183,607,110,977,666,666,640]} 1. e4 {[%emt 0:01:19]} c5 {[%emt 0:00:06][%cal Bc7c5,Bc5d4][%mdl 32]} 2. c3 {[%emt 0:00:57]} Nf6 {[%emt 0:00:51]} 3. e5 {[%emt 0:00:06]} Nd5 {[%emt 0:00:05]} 4. Nf3 {[%emt 0:00:20]} Nc6 {[%emt 0:01:47]} 5. d4 {[%emt 0:00:09]} cxd4 {[%emt 0:00:15]} 6. Bc4 {[%emt 0:00:11]} Nb6 {[%emt 0:05:28]} 7. Bb3 {[%emt 0:01:17]} d5 {[%emt 0:00:14]} 8. exd6 Qxd6 {[%emt 0:00:17]} 9. O-O {[%emt 0:00:21]} e6 {[%emt 0:07:05]} 10. cxd4 {[%emt 0:00:13]} Be7 {[%emt 0:00:06]} 11. Nc3 {[%emt 0:00:08]} O-O {[%emt 0:00:07]} 12. Re1 {[%emt 0:00:56]} Rd8 {[%emt 0:05:58][%cal Rc6d4]} 13. Ne4 {[%emt 0:30:44]} Qc7 {[%emt 0:00:37]} 14. Qc2 {[%emt 0:18:11] The position is equal.} h6 {[%emt 0:31:20] Wards off Neg5} 15. Bd2 {[%emt 0:12:59]} Nd5 {[%emt 0:06:36]} 16. Rac1 {[%emt 0:03:54]} Qb6 {[%emt 0:09:40]} 17. Nc5 {[%emt 0:01:52]} Bf8 {[%emt 0:08:37]} 18. Na4 {[%emt 0:15:19]} Qc7 {[%emt 0:00:43]} 19. Qe4 {[%emt 0:00:41]} Qd6 {[%emt 0:03:35]} 20. Be3 {[%emt 0:04:58]} Nce7 {[%emt 0:04:37]} (20... b6 $11) 21. Ne5 $1 $14 {[%emt 0:01:11]} Nf5 {[%emt 0:00:48]} 22. Red1 {[%emt 0:01:48]} (22. Qf3 $16) 22... Rb8 {[%emt 0:04:16]} (22... Bd7 $11 {remains equal.}) 23. Qf3 {[%emt 0:00:18] [#] g4 is the strong threat. White is much more active.} f6 {[%emt 0:04:13]} 24. Ng6 {[%emt 0:00:25]} Bd7 {[%emt 0:03:59]} ({Better is} 24... b6 $14) 25. Nc3 {[%emt 0:03:35]} ({White should play} 25. Nc5 $16 {Black must now prevent Bf4.} Bc6 26. Qg4 Nfxe3 27. fxe3) 25... Nxc3 {[%emt 0:01:00]} (25... Nfxe3 $14 26. fxe3 Nxc3 27. Rxc3 (27. bxc3 a5 $14) 27... Kh7) 26. Rxc3 $18 {[%emt 0:00:44]} Nxe3 27. Rxe3 {[%emt 0:00:20] [#] Strongly threatening Qf5.} Re8 {[%emt 0:00:49]} (27... a5 $142) 28. Qe2 {[%emt 0:00:41]} (28. Qe4 $18) 28... Rbc8 {[%emt 0:00:24]} (28... a5 $16) 29. Re1 {[%emt 0:00:43]} Rcd8 {[%emt 0:00:53]} (29... a5 $16) 30. Qd3 {[%emt 0:00:29]} (30. Bxe6+ Rxe6 31. Rxe6 Qxe6 32. Qxe6+ Bxe6 33. Rxe6 Rxd4 $15) 30... Bc8 {[%emt 0:00:21]} 31. Nxf8 (31. Qb1 $18) 31... Kxf8 $2 {[%emt 0:00:08]} (31... Qxf8 $16 {was worth a try.} 32. Bc2 (32. Bxe6+ Rxe6 33. Rxe6 Bxe6 $11) 32... f5) 32. Qh7 {[%emt 0:01:06] Rg3 would now be deadly.} Qxd4 {[%emt 0:00:22]} 33. h3 $40 {[%emt 0:00:33][%mdl 128] White has strong attack.} (33. Bxe6 $2 Rxe6 34. h3 Qd5 35. Rxe6 Bxe6 $19) (33. Rg3 $142 {[%csl Gg3][%cal Rh7g7]} f5 34. Bd1) 33... b5 $2 {[%emt 0:00:49]} (33... f5 34. Rc3 (34. Bxe6 Bxe6 35. Rxe6 Rxe6 $11) (34. Re5 Qf4 $18) 34... Bd7) 34. Rd1 $2 {[%emt 0:00:28]} ({Stronger than} 34. Bxe6 Bxe6 35. Rxe6 Rxe6 36. Rxe6 Qxb2 37. Qh8+ Kf7 38. Qxd8 Qc1+ 39. Kh2 Qf4+ 40. Kg1 Qc1+ 41. Kh2 Qf4+ 42. Kg1 Qc1+ $11) (34. Bc2 $18 f5 35. Bxf5) 34... Qb6 $2 {[%emt 0:00:51][%mdl 8192]} (34... Qxd1+ $16 35. Bxd1 Rxd1+ 36. Kh2 Rd7) 35. Rxd8 {[%emt 0:00:10]} Rxd8 {[%emt 0:00:12]} 36. Rg3 {[%emt 0:00:09] Weighted Error Value: White=0.67/Black=0.58.  Loses game:     	---       	Black=2      Missed win:     	White=1     	---        Mistake:       	White=5     	Black=8      Inaccurate:     	White=2     	---        OK:         	White=4     	Black=6      Best:        	White=1     	---        Strong:       	White=1     	---} 1-0